bitfinex/quotes_BTCUSD_20250526
["timestamp","ask_amount","ask_price","bid_price","bid_amount"]
[1748230738538,0.98664537,109560.0,109550.0,0.13094624]
[1748230738891,0.98664537,109560.0,109550.0,0.14920223]
[1748230739324,0.98364537,109560.0,109550.0,0.15833023]
[1748230739531,0.99364537,109560.0,109550.0,0.15933023]
[1748230739753,0.99364537,109560.0,109550.0,0.10456158]
[1748230739931,0.99364537,109560.0,109550.0,0.11368974]
[1748230740913,0.99364537,109560.0,109550.0,0.14107432]
[1748230741100,0.99364537,109560.0,109550.0,0.15020232]
[1748230741297,0.99364537,109560.0,109550.0,0.13194624]
[1748230742217,1.48271596,109560.0,109550.0,0.14107432]
[1748230743015,1.48271596,109560.0,109550.0,0.09543333]
[1748230743264,1.48271596,109560.0,109550.0,0.01543333]
[1748230743894,1.48271596,109560.0,109550.0,0.02631051]
[1748230744793,1.48256586,109560.0,109550.0,0.02631051]
[1748230747800,1.48256586,109560.0,109550.0,0.03543867]
[1748230748005,0.6651069,109560.0,109550.0,0.07195066]
[1748230748209,0.82920106,109560.0,109550.0,0.05751733]
[1748230748467,0.82920065,109560.0,109550.0,0.05751733]
[1748230748872,0.6924879,109560.0,109550.0,0.05751733]
[1748230749076,0.68336056,109560.0,109550.0,0.05751733]
[1748230749334,0.82920056,109560.0,109550.0,0.05751733]
[1748230749548,0.83832756,109560.0,109550.0,0.05751733]
[1748230750033,0.82007365,109560.0,109550.0,0.05751733]
[1748230750240,0.82920056,109560.0,109550.0,0.05751733]
[1748230751060,0.83832764,109560.0,109550.0,0.05751733]
[1748230751290,0.82920056,109560.0,109550.0,0.06107348]
[1748230751432,0.77513288,109560.0,109550.0,0.06107348]
[1748230751633,0.78425988,109560.0,109550.0,0.06107348]
[1748230751829,0.82438704,109560.0,109550.0,0.06107348]
[1748230752083,0.81525988,109560.0,109550.0,0.06107348]
[1748230752698,0.82438704,109560.0,109550.0,0.06107348]
[1748230752859,0.81525988,109560.0,109550.0,0.06107348]
[1748230753753,0.82438696,109560.0,109550.0,0.06107348]
[1748230755595,0.83351421,109560.0,109550.0,0.05194582]
[1748230755758,0.82438738,109560.0,109550.0,0.06107365]
[1748230755992,0.83351471,109560.0,109550.0,0.07020131]
[1748230756200,0.83351471,109560.0,109550.0,0.06107365]
[1748230756410,0.84264212,109560.0,109550.0,0.0702014]
[1748230756660,1.03060393,109560.0,109550.0,0.01543333]
[1748230756828,1.51054785,109560.0,109550.0,0.01543333]
[1748230757035,1.51054785,109560.0,109550.0,0.04281808]
[1748230757413,1.5014206,109560.0,109550.0,0.01543333]
[1748230757818,1.01235001,109560.0,109550.0,0.01543333]
[1748230758012,1.01235001,109560.0,109550.0,0.02456158]
[1748230758791,1.01235001,109560.0,109550.0,0.03543743]
[1748230759296,1.01235001,109560.0,109550.0,0.02630918]
[1748230759499,1.01235001,109560.0,109550.0,0.03543743]
[1748230763175,1.01235001,109560.0,109550.0,0.04456559]
[1748230764234,0.01825549,109550.0,109540.0,0.02738574]
[1748230764535,0.66087164,109550.0,109540.0,0.04564083]
[1748230764962,0.66999972,109550.0,109540.0,0.045641]
[1748230765093,0.66999964,109550.0,109540.0,0.045641]
[1748230765507,0.67199964,109550.0,109540.0,0.045641]
[1748230765707,0.85656467,109550.0,109540.0,0.00912908]
[1748230765909,0.86569275,109550.0,109540.0,0.05477341]
[1748230766439,0.8748215,109550.0,109540.0,0.04564482]
[1748230766683,0.86569367,109550.0,109540.0,0.04564482]
[1748230767062,0.85656542,109550.0,109540.0,0.0547734]
[1748230767494,0.86569367,109550.0,109540.0,0.04564482]
[1748230767839,0.86569367,109550.0,109540.0,0.0547734]
[1748230768278,0.66487223,109550.0,109540.0,0.0547734]
[1748230768507,0.66487156,109550.0,109540.0,0.0639019]
[1748230768716,0.67399956,109550.0,109540.0,0.0639019]
[1748230769047,0.68312706,109550.0,109540.0,0.0639019]
[1748230769549,0.67399906,109550.0,109540.0,0.0639019]
[1748230770007,0.09354556,109550.0,109540.0,0.0966019]
[1748230770216,0.74671156,109550.0,109540.0,0.0639019]
[1748230770424,0.78683939,109550.0,109540.0,0.0639019]
[1748230770787,0.77771148,109550.0,109540.0,0.0639019]
[1748230771152,0.80851148,109550.0,109540.0,0.0639019]
[1748230771378,0.81763939,109550.0,109540.0,0.0639019]
[1748230771580,0.81763931,109550.0,109540.0,0.0639019]
[1748230771944,0.80851148,109550.0,109540.0,0.0639019]
[1748230772122,0.81763931,109550.0,109540.0,0.0639019]
[1748230772531,0.80851148,109550.0,109540.0,0.0639019]
[1748230772732,0.31944089,109550.0,109540.0,0.0639019]
[1748230772964,0.80851148,109550.0,109540.0,0.0639019]
[1748230773753,0.77771148,109550.0,109540.0,0.0639019]
[1748230774050,0.72845615,109550.0,109540.0,0.0639019]
[1748230774680,0.73758381,109550.0,109540.0,0.0639019]
[1748230774927,0.72845615,109550.0,109540.0,0.0639019]
[1748230775133,0.23938556,109550.0,109540.0,0.0639019]
[1748230775335,0.58261615,109550.0,109540.0,0.0639019]
[1748230775517,0.72845615,109550.0,109540.0,0.0639019]
[1748230776236,0.80368381,109550.0,109540.0,0.0639019]
[1748230776432,0.80368373,109550.0,109540.0,0.0639019]
[1748230777760,0.79455615,109550.0,109540.0,0.0639019]
[1748230778107,0.80368373,109550.0,109540.0,0.0639019]
[1748230778416,0.79455615,109550.0,109540.0,0.0639019]
[1748230779274,0.64871615,109550.0,109540.0,0.0639019]
[1748230779584,0.72845615,109550.0,109540.0,0.0639019]
[1748230781251,0.76055615,109550.0,109540.0,0.0639019]
[1748230782782,0.09354556,109550.0,109540.0,0.1288019]
[1748230782999,0.23938556,109550.0,109540.0,0.1288019]
[1748230783192,0.23938556,109550.0,109540.0,0.0967019]
[1748230783591,0.58261615,109550.0,109540.0,0.0639019]
[1748230783963,0.72845615,109550.0,109540.0,0.0639019]
[1748230785863,0.59174381,109550.0,109540.0,0.0639019]
[1748230786065,0.79275615,109550.0,109540.0,0.0639019]
[1748230786358,0.81101164,109550.0,109540.0,0.0639019]
[1748230787625,0.82013964,109550.0,109540.0,0.0639019]
[1748230787752,0.81101164,109550.0,109540.0,0.0639019]
[1748230789199,0.82013964,109550.0,109540.0,0.0639019]
[1748230789601,0.81101164,109550.0,109540.0,0.0639019]
[1748230790251,0.80188365,109550.0,109540.0,0.0639019]
[1748230790692,0.81101131,109550.0,109540.0,0.0639019]
[1748230790892,0.82013914,109550.0,109540.0,0.0639019]
[1748230791846,1.01183225,109550.0,109540.0,0.04564491]
[1748230792017,1.01183225,109550.0,109540.0,0.06390207]
[1748230792240,0.82013914,109550.0,109540.0,0.06390207]
[1748230792457,0.82926705,109550.0,109540.0,0.06390207]
[1748230792657,1.02096016,109550.0,109540.0,0.05477357]
[1748230792886,0.82013955,109550.0,109540.0,0.06390157]
[1748230793238,0.82013964,109550.0,109540.0,0.06390157]
[1748230793606,1.01183283,109550.0,109540.0,0.04564449]
[1748230793849,1.01183283,109550.0,109540.0,0.05477307]
[1748230794053,1.01183325,109550.0,109540.0,0.03651591]
[1748230794259,1.00270509,109550.0,109540.0,0.05477316]
[1748230794443,1.00270509,109550.0,109540.0,0.04564466]
[1748230794657,1.00270509,109550.0,109540.0,0.0639019]
[1748230794885,1.01183325,109550.0,109540.0,0.05477332]
[1748230795054,1.01183325,109550.0,109540.0,0.0639019]
[1748230796230,1.01183325,109550.0,109540.0,0.05477332]
[1748230796358,1.0209615,109550.0,109540.0,0.05477332]
[1748230796557,0.66517198,109550.0,109540.0,0.05477332]
[1748230796761,1.00270517,109550.0,109540.0,0.0639019]
[1748230796981,1.00270509,109550.0,109540.0,0.05477299]
[1748230797963,1.06282074,109550.0,109540.0,0.05477299]
[1748230798628,1.07194899,109550.0,109540.0,0.04564441]
[1748230798836,1.06282074,109550.0,109540.0,0.06928242]
[1748230799232,1.07194899,109550.0,109540.0,0.06015384]
[1748230799418,1.07194899,109550.0,109540.0,0.05102518]
[1748230799619,1.06282074,109550.0,109540.0,0.06015376]
[1748230799987,1.07194899,109550.0,109540.0,0.06015384]
[1748230800326,1.07194899,109550.0,109540.0,0.06928242]
[1748230800327,1.0719489,109550.0,109540.0,0.06928242]
[1748230800675,1.08107715,109550.0,109540.0,0.06928242]
[1748230800993,0.88025571,109550.0,109540.0,0.07841092]
[1748230801206,0.88938396,109550.0,109540.0,0.06928242]
[1748230801412,0.88938387,109550.0,109540.0,0.06928242]
[1748230801653,0.88025571,109550.0,109540.0,0.07841092]
[1748230805096,0.71615938,109550.0,109540.0,0.07841092]
[1748230805303,0.88025504,109550.0,109540.0,0.07841092]
[1748230805950,0.88938304,109550.0,109540.0,0.07841092]
[1748230806851,0.88938304,109550.0,109540.0,0.06928242]
[1748230807054,0.88938304,109550.0,109540.0,0.07841092]
[1748230807192,0.89851112,109550.0,109540.0,0.07841092]
[1748230807963,0.71615938,109550.0,109540.0,0.07841092]
[1748230808108,0.83832721,109550.0,109540.0,0.07841092]
[1748230808531,0.87825521,109550.0,109540.0,0.07841092]
[1748230809002,0.86912721,109550.0,109540.0,0.07841092]
[1748230810650,0.86912721,109550.0,109540.0,0.06928242]
[1748230810850,0.86912721,109550.0,109540.0,0.07841092]
[1748230812560,0.86912721,109550.0,109540.0,0.15841092]
[1748230812974,0.86912713,109550.0,109540.0,0.15841092]
[1748230813124,0.87825496,109550.0,109540.0,0.15841092]
[1748230813914,0.86912713,109550.0,109540.0,0.15841092]
[1748230814611,0.8200718,109550.0,109540.0,0.15841092]
[1748230814737,0.7885718,109550.0,109540.0,0.15841092]
[1748230815585,0.7976993,109550.0,109540.0,0.15841092]
[1748230815784,0.81595463,109550.0,109540.0,0.15841092]
[1748230815992,0.84845463,109550.0,109540.0,0.15841092]
[1748230816706,0.84845454,109550.0,109540.0,0.15841092]
[1748230817238,0.85758237,109550.0,109540.0,0.15841092]
[1748230818009,0.88988237,109550.0,109540.0,0.15841092]
[1748230818343,0.88988237,109550.0,109530.0,0.35436035]
[1748230818539,0.6387318,109540.0,109530.0,0.35436035]
[1748230818741,0.6387318,109540.0,109530.0,0.37261926]
[1748230818938,0.6387318,109540.0,109530.0,0.39087601]
[1748230819771,0.6397318,109540.0,109530.0,0.39087601]
[1748230820471,0.6407318,109540.0,109530.0,0.39087601]
[1748230820676,0.6407318,109540.0,109530.0,0.36077601]
[1748230821808,0.7865718,109540.0,109530.0,0.36077601]
[1748230823604,0.8168718,109540.0,109530.0,0.36077601]
[1748230824060,0.7865718,109540.0,109530.0,0.36077601]
[1748230824261,0.7865718,109540.0,109530.0,0.39287601]
[1748230824787,0.7865718,109540.0,109530.0,0.36077601]
[1748230826188,0.8190718,109540.0,109530.0,0.36077601]
[1748230826597,0.8510718,109540.0,109530.0,0.36077601]
[1748230826995,0.8190718,109540.0,109530.0,0.36077601]
[1748230827567,0.82820013,109540.0,109530.0,0.36077601]
[1748230827774,0.86020013,109540.0,109530.0,0.36077601]
[1748230827976,0.8510718,109540.0,109530.0,0.36077601]
[1748230830175,0.86020013,109540.0,109530.0,0.36077601]
[1748230830593,0.8510718,109540.0,109530.0,0.36077601]
[1748230831211,0.86020021,109540.0,109530.0,0.36077601]
[1748230831408,0.8510718,109540.0,109530.0,0.36077601]
[1748230831614,0.86020013,109540.0,109530.0,0.36077601]
[1748230831870,0.86020013,109540.0,109530.0,0.44077601]
[1748230833920,0.8510718,109540.0,109530.0,0.44077601]
[1748230834969,0.30188556,109540.0,109530.0,0.44077601]
[1748230835173,0.8510718,109540.0,109530.0,0.44077601]
[1748230838122,0.6732318,109540.0,109530.0,0.44077601]
[1748230838368,0.7865718,109540.0,109530.0,0.44077601]
[1748230839542,0.002,109540.0,109530.0,0.57699881]
[1748230840996,0.001,109540.0,109530.0,0.57699881]
[1748230841394,0.001,109540.0,109530.0,0.57799881]
[1748230841597,0.0609,109570.0,109560.0,0.01825391]
[1748230841598,0.61008624,109570.0,109560.0,0.01825391]
[1748230841781,0.8454718,109570.0,109560.0,0.04563607]
[1748230841982,0.69978088,109570.0,109560.0,0.04563607]
[1748230842218,0.84562088,109570.0,109560.0,0.04563607]
[1748230842387,0.69978088,109570.0,109560.0,0.04563607]
[1748230842627,0.84562088,109570.0,109560.0,0.04563607]
[1748230842828,0.84962088,109570.0,109560.0,0.04563607]
[1748230843025,0.85362088,109570.0,109560.0,0.04663607]
[1748230843253,0.70778088,109570.0,109560.0,0.04663607]
[1748230843457,0.85362088,109570.0,109560.0,0.04663607]
[1748230845184,0.70778088,109570.0,109560.0,0.04663607]
[1748230845411,0.85362088,109570.0,109560.0,0.04663607]
[1748230845640,0.64688088,109570.0,109560.0,0.04663607]
[1748230845818,0.79272088,109570.0,109560.0,0.04663607]
[1748230846148,0.64688088,109570.0,109560.0,0.04663607]
[1748230846354,0.79272088,109570.0,109560.0,0.04663607]
[1748230846554,0.09769464,109570.0,109560.0,0.04663607]
[1748230846752,0.64688088,109570.0,109560.0,0.04663607]
[1748230847764,0.67978088,109570.0,109560.0,0.04663607]
[1748230848579,0.71238088,109570.0,109560.0,0.04663607]
[1748230849348,0.72150688,109570.0,109560.0,0.07194094]
[1748230849545,0.72150679,109570.0,109560.0,0.07194094]
[1748230850699,0.72150671,109570.0,109560.0,0.07194094]
[1748230850835,0.73063262,109570.0,109560.0,0.07194094]
[1748230851260,0.73063262,109570.0,109560.0,0.05748101]
[1748230852057,0.66939846,109570.0,109560.0,0.05748101]
[1748230852589,0.66027255,109570.0,109560.0,0.05748101]
[1748230854466,0.66939855,109570.0,109560.0,0.05748101]
[1748230855589,0.851931,109570.0,109560.0,0.01184494]
[1748230855786,0.86647185,109570.0,109560.0,0.01184494]
[1748230855989,1.35442393,109570.0,109560.0,0.01184494]
[1748230856188,0.86647185,109570.0,109560.0,0.01184494]
[1748230857583,0.86647185,109570.0,109560.0,0.001]
[1748230857784,0.37851977,109570.0,109560.0,0.001]
[1748230858183,0.86647185,109570.0,109560.0,0.001]
[1748230862718,0.0625,109550.0,109530.0,0.4131228]
[1748230863007,0.08954556,109540.0,109530.0,0.44963763]
[1748230864135,0.08954556,109540.0,109530.0,0.45163763]
[1748230864293,0.08954556,109540.0,109530.0,0.45063763]
[1748230865489,0.08954556,109540.0,109530.0,0.37751483]
[1748230865665,0.69629208,109550.0,109530.0,0.43208525]
[1748230865872,0.78583764,109550.0,109530.0,0.43308525]
[1748230866565,0.79496514,109550.0,109530.0,0.36838525]
[1748230866795,0.8040928,109550.0,109530.0,0.36938525]
[1748230867028,0.15034556,109540.0,109530.0,0.36838525]
[1748230867412,0.63829764,109540.0,109530.0,0.36838525]
[1748230868598,0.64742605,109540.0,109530.0,0.0375145]
[1748230868978,0.63829764,109540.0,109530.0,0.0365145]
[1748230869387,0.72333764,109540.0,109530.0,0.0365145]
[1748230869618,0.72333764,109540.0,109530.0,0.0375145]
[1748230870276,0.78423764,109540.0,109530.0,0.0375145]
[1748230871732,0.78423764,109540.0,109530.0,0.0365145]
[1748230872084,0.78623764,109540.0,109530.0,0.0365145]
[1748230876043,0.84747929,109540.0,109530.0,0.0365145]
[1748230876254,0.85660762,109540.0,109530.0,0.0365145]
[1748230877215,0.84747929,109540.0,109530.0,0.0365145]
[1748230881624,0.8566077,109540.0,109530.0,0.0365145]
[1748230881986,0.85660762,109540.0,109530.0,0.0365145]
[1748230882525,0.84747929,109540.0,109530.0,0.0365145]
[1748230885539,0.85660762,109540.0,109530.0,0.0365145]
[1748230886738,0.84747929,109540.0,109530.0,0.0365145]
[1748230888069,0.85660762,109540.0,109520.0,0.15708]
[1748230888216,0.30741389,109540.0,109530.0,0.0365145]
[1748230888416,0.85660762,109540.0,109530.0,0.0365145]
[1748230888630,0.86573603,109540.0,109530.0,0.0365145]
[1748230889422,0.85660779,109540.0,109530.0,0.0365145]
[1748230889638,0.85660779,109540.0,109530.0,0.0273855]
[1748230889639,1.6066407,109540.0,109530.0,0.0273855]
[1748230889842,0.07243016,109520.0,109510.0,0.03652541]
[1748230890157,0.70203929,109520.0,109510.0,0.05478782]
[1748230890359,0.84787929,109520.0,109510.0,0.05478782]
[1748230891115,0.84787929,109520.0,109510.0,0.05878782]
[1748230891954,0.78708315,109520.0,109510.0,0.05878782]
[1748230892297,0.79621323,109520.0,109510.0,0.05878782]
[1748230892512,0.80534339,109520.0,109510.0,0.05878782]
[1748230892916,0.80643581,109520.0,109510.0,0.05878782]
[1748230893118,0.82469672,109520.0,109510.0,0.05878782]
[1748230893322,0.82469664,109520.0,109510.0,0.05878799]
[1748230894113,0.83382722,109520.0,109510.0,0.05878799]
[1748230894648,0.82469664,109520.0,109510.0,0.05878799]
[1748230894851,0.79730573,109520.0,109510.0,0.05878799]
[1748230895051,0.81556598,109520.0,109510.0,0.05878799]
[1748230895303,0.82469639,109520.0,109510.0,0.05878799]
[1748230896164,0.83382697,109520.0,109510.0,0.05878799]
[1748230896405,0.83382697,109520.0,109510.0,0.05678799]
[1748230896814,0.83382697,109520.0,109510.0,0.05778799]
[1748230897392,0.83382697,109520.0,109510.0,0.05578799]
[1748230897680,0.83382697,109520.0,109510.0,0.05678799]
[1748230897848,0.82469639,109520.0,109510.0,0.05678799]
[1748230898783,0.82469648,109520.0,109510.0,0.05678799]
[1748230899670,0.81556598,109520.0,109510.0,0.05678799]
[1748230899810,0.83382689,109520.0,109510.0,0.05678799]
[1748230901272,1.33135589,109520.0,109510.0,0.04765699]
[1748230901420,1.33135589,109520.0,109510.0,0.03852591]
[1748230901623,1.50484068,109520.0,109510.0,0.04765716]
[1748230901924,1.01644309,109520.0,109510.0,0.05678832]
[1748230902153,1.00731276,109520.0,109510.0,0.04665716]
[1748230902332,1.00931276,109520.0,109510.0,0.05578832]
[1748230902526,1.00931276,109520.0,109510.0,0.05478832]
[1748230903042,1.01231276,109520.0,109510.0,0.05578832]
[1748230903246,1.50071035,109520.0,109510.0,0.02839458]
[1748230903424,1.49157977,109520.0,109510.0,0.02839458]
[1748230903636,1.49157977,109520.0,109510.0,0.03752591]
[1748230903830,1.50612062,109520.0,109510.0,0.001]
[1748230904034,1.57738072,109520.0,109510.0,0.001]
[1748230905214,1.56715814,109520.0,109510.0,0.001]
[1748230905827,1.56715814,109520.0,109510.0,0.01013158]
[1748230906045,1.56715814,109520.0,109510.0,0.001]
[1748230906246,1.47763663,109520.0,109510.0,0.001]
[1748230910766,1.47563663,109520.0,109510.0,0.001]
[1748230911178,0.08066249,109510.0,109500.0,0.06391457]
[1748230911475,0.65860564,109510.0,109500.0,0.06406365]
[1748230911675,0.66773697,109510.0,109500.0,0.05493199]
[1748230912205,0.74721455,109510.0,109500.0,0.04580024]
[1748230912636,0.74621455,109510.0,109500.0,0.03666841]
[1748230912913,0.74621455,109510.0,109500.0,0.04580041]
[1748230913165,1.4676063,109510.0,109500.0,0.00014908]
[1748230913402,1.4696063,109510.0,109500.0,0.00114908]
[1748230913955,0.85913991,109510.0,109500.0,0.00114908]
[1748230914180,0.86913991,109510.0,109500.0,0.00114908]
[1748230915229,0.85913991,109510.0,109500.0,0.00114908]
[1748230915484,1.00501991,109510.0,109500.0,0.00114908]
[1748230919503,0.51626112,109510.0,109500.0,0.00114908]
[1748230919707,1.00501991,109510.0,109500.0,0.00114908]
[1748230920315,0.17861757,109510.0,109500.0,0.04681016]
[1748230920537,0.8682704,109510.0,109500.0,0.03767833]
[1748230920741,1.00505949,109510.0,109500.0,0.02854625]
[1748230920942,1.00505949,109510.0,109500.0,0.0376785]
[1748230921682,0.99592833,109510.0,109500.0,0.0376785]
[1748230922263,0.99592833,109510.0,109500.0,0.04681066]
[1748230922966,0.99592833,109510.0,109500.0,0.05594266]
[1748230923169,0.65283551,109510.0,109500.0,0.05594266]
[1748230923380,0.82614941,109510.0,109500.0,0.06507449]
[1748230923579,0.68022941,109510.0,109500.0,0.06507449]
[1748230923813,0.82614941,109510.0,109500.0,0.06507449]
[1748230924316,0.82614941,109510.0,109500.0,0.05594266]
[1748230924519,0.82614941,109510.0,109500.0,0.06507457]
[1748230924825,0.82614933,109510.0,109500.0,0.06507407]
[1748230926645,0.67109783,109510.0,109500.0,0.06507407]
[1748230926851,0.74648659,109510.0,109500.0,0.06507407]
[1748230927055,0.76474908,109510.0,109500.0,0.06507407]
[1748230927231,0.82784908,109510.0,109500.0,0.06507407]
[1748230928578,0.81871767,109510.0,109500.0,0.06507407]
[1748230929585,0.59143526,109510.0,109500.0,0.06507407]
[1748230929792,0.75561767,109510.0,109500.0,0.06507407]
[1748230929933,0.81891767,109510.0,109500.0,0.06507407]
[1748230930171,0.58230435,109510.0,109500.0,0.06410307]
[1748230930341,0.72822435,109510.0,109500.0,0.09540307]
[1748230930762,0.72822435,109510.0,109500.0,0.06410307]
[1748230931174,0.72822435,109510.0,109500.0,0.07858659]
[1748230931439,0.73735535,109510.0,109500.0,0.07858659]
[1748230931637,0.80918651,109510.0,109500.0,0.07858659]
[1748230931848,0.80005535,109510.0,109500.0,0.07858659]
[1748230932865,0.80918626,109510.0,109500.0,0.07858659]
[1748230933097,0.80918618,109510.0,109500.0,0.07858659]
[1748230934684,0.80005518,109510.0,109500.0,0.07858659]
[1748230934890,0.81831726,109510.0,109500.0,0.07858659]
[1748230935086,0.80918618,109510.0,109500.0,0.07858659]
[1748230936609,0.80914618,109510.0,109500.0,0.07858659]
[1748230939057,0.81827734,109510.0,109500.0,0.15858659]
[1748230939399,0.82740875,109510.0,109500.0,0.15858659]
[1748230939605,0.81827734,109510.0,109500.0,0.15858659]
[1748230940085,0.82740859,109510.0,109500.0,0.15858659]
[1748230941778,0.80914618,109510.0,109500.0,0.15858659]
[1748230942356,0.81827734,109510.0,109500.0,0.15858659]
[1748230942795,0.80914618,109510.0,109500.0,0.15858659]
[1748230944044,0.81827734,109510.0,109500.0,0.15858659]
[1748230944231,0.80914618,109510.0,109500.0,0.15858659]
[1748230945397,0.82740875,109510.0,109500.0,0.15858659]
[1748230945610,0.82740867,109510.0,109500.0,0.15858659]
[1748230945811,1.01004114,109510.0,109500.0,0.13119085]
[1748230946027,1.01004114,109510.0,109500.0,0.0946616]
[1748230946028,1.00631983,109510.0,109500.0,0.0946616]
[1748230946236,0.0747325,109490.0,109470.0,0.11233425]
[1748230946427,0.31015806,109490.0,109480.0,0.35826725]
[1748230946640,0.78978435,109490.0,109480.0,0.35826725]
[1748230947403,0.79078435,109490.0,109480.0,0.35826725]
[1748230947640,0.78978435,109490.0,109480.0,0.35826725]
[1748230948262,0.79891685,109490.0,109480.0,0.35826725]
[1748230948456,0.78978435,109490.0,109480.0,0.37653233]
[1748230948810,0.79985322,109490.0,109480.0,0.37653233]
[1748230949013,0.80085322,109490.0,109480.0,0.37753233]
[1748230949339,0.80085322,109490.0,109480.0,0.37853233]
[1748230950091,0.8099858,109490.0,109480.0,0.37853233]
[1748230950307,0.80998572,109490.0,109480.0,0.37853233]
[1748230952626,0.8191183,109490.0,109480.0,0.37853233]
[1748230953721,0.8373838,109490.0,109480.0,0.03853233]
[1748230953940,0.00913383,109480.0,109470.0,0.00049734]
[1748230954153,1.33071265,109480.0,109470.0,0.00049734]
[1748230954371,0.64100435,109480.0,109470.0,0.05530552]
[1748230954582,0.78688435,109480.0,109470.0,0.05530552]
[1748230954777,0.23542556,109480.0,109470.0,0.05530552]
[1748230954982,0.23442556,109480.0,109470.0,0.08670552]
[1748230955429,0.08854556,109480.0,109470.0,0.08670552]
[1748230956134,0.08954556,109480.0,109470.0,0.08970552]
[1748230956403,0.08854556,109480.0,109470.0,0.08670552]
[1748230956824,0.08954556,109480.0,109470.0,0.08770552]
[1748230957034,0.08954556,109480.0,109470.0,0.42770552]
[1748230957438,0.09254556,109480.0,109470.0,0.42770552]
[1748230957590,0.09254556,109480.0,109470.0,0.39630552]
[1748230958015,0.08954556,109480.0,109470.0,0.39630552]
[1748230958385,0.09054556,109480.0,109470.0,0.42730552]
[1748230959863,0.09054556,109480.0,109470.0,0.45950552]
[1748230960798,0.002,109480.0,109470.0,0.45950552]
[1748230975926,0.002,109480.0,109470.0,0.42730552]
[1748230977490,0.002,109480.0,109470.0,0.39630552]
[1748230982323,0.002,109480.0,109470.0,0.55070552]
[1748230982935,0.002,109480.0,109470.0,0.58340552]
[1748230983173,0.002,109480.0,109470.0,0.61580552]
[1748230983786,0.002,109480.0,109470.0,0.6447814]
[1748230983955,0.001,109480.0,109470.0,0.6447814]
[1748230984188,0.75927613,109510.0,109500.0,0.04566108]
[1748230984325,0.84882169,109510.0,109500.0,0.04566108]
[1748230985899,0.85282169,109510.0,109500.0,0.04666108]
[1748230986058,0.30816556,109510.0,109500.0,0.04666108]
[1748230986488,0.16224556,109510.0,109500.0,0.04666108]
[1748230986839,0.0727,109510.0,109500.0,0.04894405]
[1748230987363,0.0687,109510.0,109500.0,0.04894405]
[1748230987996,0.005,109510.0,109500.0,0.04894405]
[1748230988244,0.005,109510.0,109500.0,0.20334389]
[1748230988467,0.005,109510.0,109500.0,0.20106108]
[1748230988684,0.064,109520.0,109510.0,0.38565692]
[1748230988825,0.15354556,109520.0,109510.0,0.38565692]
[1748230989219,0.15354556,109520.0,109510.0,0.46565692]
[1748230989845,0.15369456,109520.0,109510.0,0.46565692]
[1748230990223,0.15769456,109520.0,109510.0,0.46665692]
[1748230990440,0.15969456,109520.0,109510.0,0.46665692]
[1748230997741,0.006149,109520.0,109510.0,0.46665692]
[1748230998072,0.066649,109520.0,109510.0,0.46665692]
[1748231001913,0.006149,109520.0,109510.0,0.46665692]
[1748231004211,0.038149,109520.0,109510.0,0.46665692]
[1748231004510,0.070849,109520.0,109510.0,0.46665692]
[1748231005392,0.038149,109520.0,109510.0,0.46665692]
[1748231005590,0.006149,109520.0,109510.0,0.46665692]
[1748231014418,0.039049,109520.0,109510.0,0.46665692]
[1748231016107,0.070549,109520.0,109510.0,0.46665692]
[1748231016872,0.039049,109520.0,109510.0,0.46665692]
[1748231017345,0.070549,109520.0,109510.0,0.61249692]
[1748231017591,0.070549,109520.0,109510.0,0.46665692]
[1748231017791,0.5589576,109520.0,109510.0,0.62217692]
[1748231018104,0.070549,109520.0,109510.0,0.62217692]
[1748231019408,0.070549,109520.0,109510.0,0.46665692]
[1748231019662,0.070549,109520.0,109510.0,0.62217692]
[1748231022360,0.070549,109520.0,109510.0,0.62141692]
[1748231024142,0.78249821,109520.0,109510.0,0.10839467]
[1748231024291,0.98337416,109520.0,109510.0,0.09013158]
[1748231024496,0.97424383,109520.0,109510.0,0.081]
[1748231024680,0.99250482,109520.0,109510.0,0.081]
[1748231025084,1.54719619,109520.0,109510.0,0.081]
[1748231025281,0.99791534,109520.0,109510.0,0.081]
[1748231025981,1.42576615,109520.0,109510.0,0.081]
[1748231026180,1.42576615,109520.0,109510.0,0.001]
[1748231026391,1.35736615,109520.0,109500.0,0.01826484]
[1748231026588,0.79728247,109510.0,109500.0,0.01826484]
[1748231026799,0.80541372,109510.0,109500.0,0.01826484]
[1748231027000,0.81454455,109510.0,109500.0,0.01826484]
[1748231027497,0.8246138,109510.0,109500.0,0.01826484]
[1748231027696,0.66964255,109510.0,109500.0,0.02739659]
[1748231027896,0.15274556,109510.0,109500.0,0.04566033]
[1748231028103,0.15274556,109510.0,109500.0,0.06392449]
[1748231028436,0.15774556,109510.0,109500.0,0.06720743]
[1748231028819,0.0682,109510.0,109500.0,0.06720743]
[1748231029029,0.005,109510.0,109500.0,0.06492449]
[1748231029750,0.005,109510.0,109500.0,0.55080449]
[1748231030154,0.005,109510.0,109500.0,0.63080449]
[1748231031082,0.005,109510.0,109500.0,0.66090449]
[1748231033425,0.005,109510.0,109500.0,0.4501]
[1748231033644,0.005,109510.0,109500.0,0.46836484]
[1748231033999,0.005,109510.0,109500.0,0.47749659]
[1748231034524,0.005,109510.0,109500.0,0.48662842]
[1748231036154,0.005,109510.0,109500.0,0.49576033]
[1748231036904,0.005,109510.0,109500.0,0.46566033]
[1748231037056,0.005,109510.0,109500.0,0.47479233]
[1748231038079,0.005,109510.0,109500.0,0.48392449]
[1748231044816,0.0678,109510.0,109500.0,0.48392449]
[1748231044984,0.0678,109510.0,109500.0,0.63868449]
[1748231047824,0.005,109510.0,109500.0,0.63868449]
[1748231048036,0.0376,109510.0,109500.0,0.63868449]
[1748231048929,0.07,109510.0,109500.0,0.63868449]
[1748231056426,0.005,109510.0,109500.0,0.63868449]
[1748231056883,0.005,109510.0,109500.0,0.67198449]
[1748231057092,0.005,109510.0,109500.0,0.70428449]
[1748231057798,0.002,109510.0,109500.0,0.70428449]
[1748231058009,0.003,109510.0,109500.0,0.70528449]
[1748231058161,0.001,109510.0,109500.0,0.70528449]
[1748231058366,0.001,109510.0,109500.0,0.70628449]
[1748231058749,0.001,109510.0,109500.0,0.73526037]
[1748231059411,0.001,109510.0,109500.0,0.82480593]
[1748231060366,0.001,109510.0,109500.0,0.79583005]
[1748231061203,0.001,109510.0,109500.0,0.8103709]
[1748231062046,0.001,109510.0,109500.0,0.8093709]
[1748231062268,0.000149,109520.0,109510.0,0.009131]
[1748231062410,0.000149,109520.0,109510.0,0.26871656]
[1748231062792,0.000149,109520.0,109510.0,0.27784781]
[1748231062995,0.000149,109520.0,109510.0,0.28697931]
[1748231063194,0.065049,109520.0,109510.0,0.05159375]
[1748231063415,0.065049,109520.0,109510.0,0.38015159]
[1748231063847,0.065049,109520.0,109510.0,0.08055159]
[1748231064043,0.065049,109520.0,109510.0,0.23431159]
[1748231064262,0.066049,109520.0,109510.0,0.08255159]
[1748231064468,0.066049,109520.0,109510.0,0.21211159]
[1748231064674,0.066049,109520.0,109510.0,0.05835159]